fUSD/lending_fUSD_20240212
["ID","MTS","AMOUNT","RATE_DAILY","PERIOD"]
[313846856,1707750721975,302.24,0.00022798,2]
[313846857,1707750722506,500.0,0.00022799,2]
[313846858,1707750722678,500.0,0.00022798,2]
[313846859,1707750724585,500.0,0.00022798,2]
[313846860,1707750729242,372.77,0.00022798,2]
[313846861,1707750730524,500.0,0.00022798,2]
[313846862,1707750730703,500.0,0.00022798,2]
[313846863,1707750731527,523.84,0.00022798,2]
[313846864,1707750732044,60109.7061,0.00022698,2]
[313846865,1707750732239,639.25,0.00022798,2]
[313846866,1707750732635,500.0,0.00022798,2]
[313846867,1707750733556,500.0,0.00022798,2]
[313846868,1707750734456,220.17687449,0.00022798,2]
[313846869,1707750737410,500.0,0.00022798,2]
[313846870,1707750739182,500.0,0.00022798,2]
[313846871,1707750739273,500.0,0.00022798,2]
[313846872,1707750740361,168.51,0.00022887,2]
[313846873,1707750740851,500.0,0.00022798,2]
[313846874,1707750741152,506.09,0.00022798,2]
[313846875,1707750741343,245000.0,0.00022698,2]
[313846876,1707750742003,631.36785991,0.00022798,2]
[313846877,1707750742268,500.0,0.00022798,2]
[313846878,1707750742868,500.0,0.00022799,2]
[313846879,1707750744046,500.0,0.00022798,2]
[313846880,1707750744491,500.0,0.00022798,2]
[313846881,1707750746264,1674.32,0.00022798,2]
[313846882,1707750747883,500.0,0.00022798,2]
[313846883,1707750749046,500.0,0.00022798,2]
[313846884,1707750750480,500.0,0.00022799,2]
[313846885,1707750751821,711.86,0.00022798,2]
[313846886,1707750752142,500.0,0.00022798,2]
[313846887,1707750752941,155.4112131,0.00022799,2]
[313846888,1707750753238,500.0,0.00022798,2]
[313846889,1707750754008,500.0,0.00022799,2]
[313846890,1707750754410,150.0,0.000229,2]
[313846891,1707750757137,500.0,0.00022798,2]
[313846892,1707750759518,943.49,0.00022799,2]
[313846893,1707750759937,500.0,0.00022799,2]
[313846894,1707750760235,500.0,0.00022798,2]
[313846895,1707750760781,155.3,0.00022725,2]
[313846896,1707750762546,150.0,0.00022798,2]
[313846897,1707750762643,500.0,0.00022798,2]
[313846898,1707750763619,500.0,0.00022799,2]
[313846899,1707750763926,500.0,0.00022798,2]
[313846900,1707750764918,261.34,0.00022737,2]
[313846901,1707750767384,500.0,0.00022798,2]
[313846902,1707750768182,500.0,0.00022798,2]
[313846904,1707750771059,500.0,0.00022798,2]
[313846905,1707750771492,500.0,0.00022798,2]
[313846906,1707750774700,250.0,0.00022737,2]
[313846907,1707750775341,500.0,0.00022798,2]
[313846908,1707750776158,500.0,0.00022798,2]
[313846909,1707750776507,500.0,0.00022798,2]
[313846910,1707750776535,500.0,0.00022798,2]
[313846911,1707750777732,500.0,0.00022798,2]
[313846912,1707750780342,200.0,0.00022737,2]
[313846913,1707750780665,527.79,0.00022798,2]
[313846914,1707750781402,500.0,0.00022798,2]
[313846915,1707750782298,18996.0816,0.00022543,2]
[313846916,1707750782701,500.0,0.00022798,2]
[313846917,1707750784715,694.91,0.00022798,2]
[313846918,1707750786580,500.0,0.00022799,2]
[313846919,1707750789079,500.0,0.00022798,2]
[313846920,1707750791628,624.67,0.00022798,2]
[313846921,1707750794070,500.0,0.00022798,2]
[313846922,1707750797055,500.0,0.00022799,2]
[313846923,1707750797546,2947.5388,0.00022899,2]
[313846924,1707750799901,500.0,0.00022798,2]
[313846925,1707750800116,505.85324134,0.00022799,2]
[313846926,1707750800606,500.0,0.00022798,2]
[313846927,1707750801592,500.0,0.00022799,2]
[313846928,1707750803115,500.0,0.00022798,2]
[313846929,1707750803826,510.894,0.00022899,2]
[313846930,1707750804463,500.0,0.00022799,2]
[313846931,1707750805184,500.0,0.00022798,2]
[313846932,1707750806318,9994.49,0.00022804,2]
[313846933,1707750807049,500.0,0.00022798,2]
[313846934,1707750807109,500.0,0.00022798,2]
[313846935,1707750808068,500.0,0.00022798,2]
[313846936,1707750810432,500.0,0.00022798,2]
[313846937,1707750813155,500.0,0.00022798,2]
[313846938,1707750813793,500.0,0.00022798,2]
[313846939,1707750814544,500.0,0.00022798,2]
[313846940,1707750814574,500.0,0.00022798,2]
[313846941,1707750816416,500.0,0.00022798,2]
[313846942,1707750817921,500.0,0.00022798,2]
[313846943,1707750817953,500.0,0.00022798,2]
[313846944,1707750820323,500.0,0.00022798,2]
[313846945,1707750823610,500.0,0.00022973,2]
[313846946,1707750824086,500.0,0.00022798,2]
[313846947,1707750824566,525.35971586,0.00022799,2]
[313846948,1707750827427,500.0,0.00022798,2]
[313846949,1707750828109,500.0,0.00022798,2]
[313846950,1707750829854,411.84,0.00022798,2]
[313846951,1707750829929,591.61,0.00022798,2]
[313846952,1707750831401,1358.88,0.00022798,2]
[313846953,1707750832951,500.0,0.00022798,2]
[313846954,1707750833122,500.0,0.00022798,2]
[313846955,1707750834434,500.0,0.00022798,2]
[313846956,1707750839148,5000.0,0.000229,2]
[313846957,1707750839941,500.0,0.00022798,2]
[313846958,1707750841223,500.0,0.00022798,2]
[313846959,1707750842693,500.0,0.00022798,2]
[313846960,1707750842744,509.26498122,0.00022799,2]
[313846961,1707750844115,2326.1,0.00022798,2]
[313846962,1707750844877,500.0,0.00022798,2]
[313846963,1707750845553,500.0,0.00022799,2]
[313846964,1707750846436,85426.10789088,0.000229,2]
[313846966,1707750948074,350.95,0.00022186,2]
[313846967,1707750979687,-1911.90542998,0.00022405,2]
[313846968,1707750979717,-840.0,0.00022406,2]
[313846969,1707750979745,-250.0,0.00022531,2]
[313846970,1707750979769,-161.77972462,0.00022598,2]
[313846971,1707750979797,-604.37844804,0.00022698,2]
[313846972,1707750979824,-2500.0,0.00022698,2]
[313846973,1707750979853,-1111.6785,0.00022699,2]
[313846974,1707750979879,-854710.21638579,0.0002278,2]
[313846975,1707750979903,-500.0,0.00022798,2]
[313846976,1707750979930,-500.0,0.00022798,2]
[313846977,1707750979958,-852.93,0.00022798,2]
[313846978,1707750979984,-192.19,0.00022798,2]
[313846979,1707750980013,-500.0,0.00022798,2]
[313846980,1707750980041,-500.0,0.00022798,2]
[313846981,1707750980070,-500.0,0.00022798,2]
[313846982,1707750980099,-500.0,0.00022798,2]
[313846983,1707750980126,-1363.63,0.00022798,2]
[313846984,1707750980150,-500.0,0.00022798,2]
[313846985,1707750980175,-500.0,0.00022798,2]
[313846986,1707750980202,-500.0,0.00022798,2]
[313846987,1707750980229,-527.32,0.00022798,2]
[313846988,1707750980258,-500.0,0.00022798,2]
[313846989,1707750980283,-500.0,0.00022798,2]
[313846990,1707750980307,-500.0,0.00022798,2]
[313846991,1707750980333,-500.0,0.00022798,2]
[313846992,1707750980359,-503.68,0.00022798,2]
[313846993,1707750980391,-500.0,0.00022798,2]
[313846994,1707750980417,-500.0,0.00022798,2]
[313846995,1707750980442,-1173.08,0.00022798,2]
[313846996,1707750980480,-500.0,0.00022798,2]
[313846997,1707750980512,-500.0,0.00022798,2]
[313846998,1707750980541,-500.0,0.00022798,2]
[313846999,1707750980569,-500.0,0.00022798,2]
[313847000,1707750980596,-500.0,0.00022798,2]
[313847001,1707750980623,-575.01,0.00022798,2]
[313847002,1707750980650,-500.0,0.00022798,2]
[313847003,1707750980678,-500.0,0.00022798,2]
[313847004,1707750980704,-500.0,0.00022798,2]
[313847005,1707750980732,-500.0,0.00022798,2]
[313847006,1707750980761,-500.0,0.00022798,2]
[313847007,1707750980787,-500.0,0.00022798,2]
[313847008,1707750980814,-500.0,0.00022798,2]
[313847009,1707750980842,-500.0,0.00022798,2]
[313847010,1707750980873,-500.0,0.00022798,2]
[313847011,1707750980898,-500.0,0.00022798,2]
[313847012,1707750980923,-500.0,0.00022798,2]
[313847013,1707750980947,-500.0,0.00022798,2]
[313847014,1707750980973,-783.92,0.00022798,2]
[313847015,1707750980999,-589.7,0.00022798,2]
[313847016,1707750981023,-500.0,0.00022798,2]
[313847017,1707750981047,-792.12,0.00022798,2]
[313847018,1707750981072,-500.0,0.00022798,2]
[313847019,1707750981100,-500.0,0.00022798,2]
[313847020,1707750981126,-500.0,0.00022798,2]
[313847021,1707750981152,-500.0,0.00022798,2]
[313847022,1707750981179,-500.0,0.00022798,2]
[313847023,1707750981205,-500.0,0.00022798,2]
[313847024,1707750981229,-500.0,0.00022798,2]
[313847025,1707750981256,-500.0,0.00022798,2]
[313847026,1707750981287,-500.0,0.00022798,2]
[313847027,1707750981313,-500.0,0.00022798,2]
[313847028,1707750981343,-500.0,0.00022798,2]
[313847029,1707750981368,-500.0,0.00022798,2]
[313847030,1707750981394,-500.0,0.00022798,2]
[313847031,1707750981420,-500.0,0.00022798,2]
[313847032,1707750981447,-500.0,0.00022798,2]
[313847033,1707750981472,-500.0,0.00022798,2]
[313847034,1707750981500,-500.0,0.00022798,2]
[313847035,1707750981524,-500.0,0.00022798,2]
[313847036,1707750981551,-500.0,0.00022798,2]
[313847037,1707750981576,-500.0,0.00022798,2]
[313847038,1707750981601,-500.0,0.00022798,2]
[313847039,1707750981627,-500.0,0.00022798,2]
[313847040,1707750981653,-500.0,0.00022798,2]
[313847041,1707750981677,-500.0,0.00022798,2]
[313847042,1707750981702,-500.0,0.00022798,2]
[313847043,1707750981726,-500.0,0.00022798,2]
[313847044,1707750981751,-174.17,0.00022799,2]
[313847045,1707750981774,-500.0,0.00022799,2]
[313847046,1707750981798,-500.0,0.00022799,2]
[313847047,1707750981823,-500.0,0.00022799,2]
[313847048,1707750981847,-500.0,0.00022799,2]
[313847049,1707750981875,-500.0,0.00022799,2]
[313847050,1707750981900,-500.0,0.00022799,2]
[313847051,1707750981924,-234.35749533,0.00022799,2]
[313847052,1707750981948,-500.0,0.00022799,2]
[313847053,1707750981973,-500.0,0.00022799,2]
[313847054,1707750982001,-2487.5329,0.000228,2]
[313847055,1707750982028,-161.77972462,0.00022814,2]
[313847056,1707750982054,-390.58352314,0.00022897,2]
[313847057,1707750982078,-264.70440518,0.00022897,2]
[313847058,1707750982103,-156.21869345,0.00022898,2]
[313847059,1707750982126,-18401.73479511,0.00022898,2]
[313847060,1707750982153,-204.02044638,0.00022898,2]
[313847061,1707750982178,-243.49617985,0.00022898,2]
[313847062,1707750982204,-775.13806544,0.00022898,2]
[313847063,1707750982230,-7185.2916065,0.00022898,2]
[313847064,1707750982259,-456.94674192,0.00022898,2]
[313847065,1707750982284,-179.32698187,0.00022898,2]
[313847066,1707750982307,-564.63806203,0.00022898,2]
[313847067,1707750982331,-3289.09678362,0.00022898,2]
[313847068,1707750982354,-185.41552769,0.00022898,2]
[313847069,1707750982378,-33643.65090597,0.00022898,2]
[313847070,1707750982402,-959.57323446,0.00022898,2]
[313847071,1707750982425,-1183.68414788,0.00022899,2]
[313847072,1707750982449,-2147.9486642,0.00022899,2]
[313847073,1707750982473,-167.8883481,0.00022899,2]
[313847074,1707750982503,-500.0,0.00022899,2]
[313847075,1707750982527,-500.0,0.00022899,2]
[313847076,1707750982553,-369.18973209,0.00022899,2]
[313847077,1707750982577,-645.92,0.00022899,2]
[313847078,1707750982602,-500.0,0.00022899,2]
[313847079,1707750982626,-505.01,0.00022899,2]
[313847080,1707750982650,-500.0,0.00022899,2]
[313847081,1707750982674,-500.0,0.00022899,2]
[313847082,1707750982698,-500.0,0.00022899,2]
[313847083,1707750982722,-500.0,0.00022899,2]
[313847084,1707750983253,-500.0,0.00022899,2]
[313847085,1707750983288,-500.0,0.00022899,2]
[313847086,1707750983309,-500.0,0.00022899,2]
[313847087,1707750983331,-566.16,0.00022899,2]
[313847088,1707750983352,-500.0,0.00022899,2]
[313847089,1707750983374,-500.0,0.00022899,2]
[313847090,1707750983395,-500.0,0.00022899,2]
[313847091,1707750983417,-500.0,0.00022899,2]
[313847092,1707750983438,-500.0,0.00022899,2]
[313847093,1707750983458,-356.3182879,0.00022899,2]
[313847094,1707750983480,-2592.79,0.00022899,2]
[313847095,1707750983503,-500.0,0.00022899,2]
[313847096,1707750983525,-500.0,0.00022899,2]
[313847097,1707750983547,-301497.89210912,0.000229,2]
[313847098,1707750983569,-150.0,0.000229,2]
[313847099,1707750983591,-237971.5016,0.00022973,2]
[313847100,1707750983612,-500.0,0.00022973,2]
[313847101,1707750984122,500.0,0.00022798,2]
[313847102,1707750985714,500.0,0.00022899,2]
[313847103,1707750987071,500.0,0.00022798,2]
[313847104,1707750987599,500.0,0.00022798,2]
[313847105,1707750988852,500.0,0.00022798,2]
[313847106,1707750990403,500.0,0.00022899,2]
[313847107,1707750991521,500.0,0.00022798,2]
[313847108,1707750992310,500.0,0.00022899,2]
[313847109,1707750993053,500.0,0.00022798,2]
[313847110,1707750993152,18416.5522,0.000228,2]
[313847111,1707750993195,551.33482529,0.00022899,2]
[313847112,1707750994485,500.0,0.00022798,2]
[313847113,1707750995617,500.0,0.00022798,2]
[313847114,1707750995865,500.0,0.00022899,2]
[313847115,1707750997266,500.0,0.00022798,2]
[313847116,1707750998670,500.0,0.00022899,2]
[313847117,1707750999967,500.0,0.00022799,2]
[313847118,1707751000100,158.75,0.00020649,2]
[313847119,1707751000344,158.75,0.00022913,2]
[313847120,1707751000846,500.0,0.00022798,2]
[313847121,1707751001480,500.0,0.00022798,2]
[313847122,1707751001620,500.0,0.00022798,2]
[313847123,1707751001647,500.0,0.00022799,2]
[313847124,1707751002419,500.0,0.00022899,2]
[313847125,1707751002449,500.0,0.00022798,2]
[313847126,1707751002584,500.0,0.00022799,2]
[313847127,1707751002918,500.0,0.00022899,2]
[313847128,1707751003142,150.0,0.000229,2]
[313847129,1707751003744,500.0,0.00022798,2]
[313847130,1707751004683,500.0,0.00022798,2]
[313847131,1707751006747,500.0,0.00022798,2]
[313847132,1707751007061,500.0,0.00022798,2]
[313847133,1707751008175,500.0,0.00022899,2]
[313847134,1707751009640,500.0,0.00022798,2]
[313847135,1707751010375,598.18,0.00022899,2]
[313847136,1707751010830,500.0,0.00022899,2]
[313847137,1707751010861,500.0,0.00022799,2]
[313847138,1707751011146,500.0,0.00022798,2]
[313847139,1707751011318,535.11,0.00022899,2]
[313847140,1707751012959,665.96,0.00022798,2]
[313847141,1707751014666,500.0,0.00022798,2]
[313847142,1707751016438,500.0,0.00022798,2]
[313847143,1707751016861,500.0,0.00022899,2]
[313847144,1707751017690,159.32,0.00022567,10]
[313847145,1707751019804,500.0,0.00022798,2]
[313847146,1707751020119,500.0,0.00022899,2]
[313847147,1707751020347,500.0,0.00022798,2]
[313847148,1707751021252,500.0,0.00022799,2]
[313847149,1707751022060,531.92,0.00022899,2]
[313847150,1707751022144,500.0,0.00022899,2]
[313847151,1707751023116,500.0,0.00022799,2]
[313847152,1707751023994,513.3,0.00022899,2]
[313847153,1707751024075,206.0,0.00022215,2]
[313847154,1707751024421,500.0,0.00022798,2]
[313847155,1707751025256,500.0,0.00022899,2]
[313847156,1707751026558,500.0,0.00022899,2]
[313847157,1707751026707,500.0,0.00022899,2]
[313847158,1707751026974,500.0,0.00022798,2]
[313847159,1707751028263,500.0,0.00022798,2]
[313847160,1707751028446,812.2,0.00022899,2]
[313847161,1707751028584,500.0,0.00022798,2]
[313847162,1707751030612,500.0,0.00022798,2]
[313847163,1707751031102,500.0,0.00022799,2]
[313847164,1707751031869,500.0,0.00022799,2]
[313847165,1707751033460,500.0,0.00022899,2]
[313847166,1707751033869,500.0,0.00022798,2]
[313847167,1707751034709,500.0,0.00022899,2]
[313847168,1707751036204,501.72,0.00022899,2]
[313847169,1707751036883,500.0,0.00022899,2]
[313847170,1707751037240,500.0,0.00022799,2]
[313847171,1707751037633,356.59343639,0.00022899,2]
[313847172,1707751037663,518.76046314,0.00022799,2]
[313847173,1707751038231,160.38956237,0.00022899,2]
[313847174,1707751039084,500.0,0.00022899,2]
[313847175,1707751039628,500.0,0.00022899,2]
[313847176,1707751040083,468.5311957,0.00022799,2]
[313847177,1707751040513,500.0,0.00022899,2]
[313847178,1707751041207,500.0,0.00022899,2]
[313847179,1707751042386,500.0,0.00022799,2]
[313847180,1707751043094,500.0,0.00022798,2]
[313847181,1707751043180,516.61460395,0.00022899,2]
[313847182,1707751045095,544.85,0.00022899,2]
[313847183,1707751045127,500.0,0.00022798,2]
[313847184,1707751046076,500.0,0.00022798,2]
[313847185,1707751046659,500.0,0.00022798,2]
[313847186,1707751047238,500.0,0.00022798,2]
[313847187,1707751047348,500.0,0.00022899,2]
[313847188,1707751049823,500.0,0.00022799,2]
[313847189,1707751050236,14504.18,0.00022526,2]
[313847190,1707751053741,500.0,0.00022899,2]
[313847191,1707751054481,500.65,0.00022899,2]
[313847192,1707751054718,500.0,0.00022899,2]
[313847193,1707751054976,300.0,0.00022899,2]
[313847194,1707751055070,500.0,0.00022798,2]
[313847195,1707751055558,172.30581894,0.00022899,2]
[313847196,1707751056957,500.0,0.00022899,2]
[313847197,1707751057451,500.0,0.00022798,2]
[313847198,1707751057487,500.0,0.00022899,2]
[313847199,1707751057519,882.49,0.00022798,2]
[313847200,1707751058499,500.0,0.00022798,2]
[313847201,1707751059487,768.64,0.00022899,2]
[313847202,1707751061897,500.0,0.00022799,2]
[313847203,1707751063021,23900.0,0.00022526,2]
[313847204,1707751063139,500.0,0.00022798,2]
[313847205,1707751063470,500.0,0.00022798,2]
[313847206,1707751064705,500.0,0.00022798,2]
[313847207,1707751065804,500.0,0.00022899,2]
[313847208,1707751065843,500.0,0.00022899,2]
[313847209,1707751068820,500.0,0.00022798,2]
[313847210,1707751069055,500.0,0.00022899,2]
[313847211,1707751069251,500.0,0.00022798,2]
[313847212,1707751070075,500.0,0.00022899,2]
[313847213,1707751070691,500.0,0.00022899,2]
[313847214,1707751070991,500.0,0.00022798,2]
[313847215,1707751071500,500.0,0.00022899,2]
[313847216,1707751071719,500.0,0.00022798,2]
[313847217,1707751071903,500.0,0.00022899,2]
[313847218,1707751073145,1818.97,0.00022899,2]
[313847219,1707751073480,763.58,0.00022899,2]
[313847220,1707751077348,500.0,0.00022899,2]
[313847221,1707751079387,500.0,0.00022899,2]
[313847222,1707751081181,179.88,0.00022798,2]
[313847223,1707751082805,937.17,0.00022899,2]
[313847224,1707751083033,500.0,0.00022798,2]
[313847225,1707751083346,500.0,0.00022798,2]
[313847226,1707751084208,500.0,0.00022799,2]
[313847227,1707751085962,500.0,0.00022899,2]
[313847228,1707751086117,500.0,0.00022798,2]
[313847229,1707751086149,500.0,0.00022798,2]
[313847230,1707751087498,500.0,0.00022899,2]
[313847231,1707751090988,1814.1657,0.000228,2]
[313847232,1707751091478,500.0,0.00022799,2]
[313847233,1707751091832,500.0,0.00022899,2]
[313847234,1707751094536,1306.81,0.00022798,2]
[313847235,1707751094793,500.0,0.00022799,2]
[313847236,1707751095464,492.44805695,0.00022798,2]
[313847237,1707751095620,500.0,0.00022798,2]
[313847238,1707751096951,500.0,0.00022899,2]
[313847239,1707751098065,500.0,0.00022798,2]
[313847240,1707751098412,156.95,0.00022743,2]
[313847241,1707751101000,500.0,0.00022899,2]
[313847242,1707751101438,500.0,0.00022798,2]
[313847243,1707751103399,500.0,0.00022899,2]
[313847244,1707751103523,500.0,0.00022799,2]
[313847245,1707751106036,500.0,0.00022899,2]
[313847246,1707751106856,500.0,0.00022798,2]
[313847247,1707751107533,500.0,0.00022798,2]
[313847248,1707751109136,500.0,0.00022899,2]
[313847249,1707751110662,500.0,0.00022899,2]
[313847250,1707751111537,500.0,0.00022798,2]
[313847251,1707751112321,500.0,0.00022798,2]
[313847252,1707751112529,500.0,0.00022899,2]
[313847253,1707751114171,500.0,0.00022798,2]
[313847254,1707751114376,500.0,0.00022899,2]
[313847255,1707751114445,500.0,0.00022798,2]
[313847256,1707751115548,500.0,0.00022899,2]
[313847257,1707751118047,500.0,0.00022899,2]
[313847258,1707751118596,1124.2,0.00022798,2]
[313847259,1707751120380,500.0,0.00022798,2]
[313847260,1707751120579,500.0,0.00022899,2]
[313847261,1707751122821,505.35,0.00022798,2]
[313847262,1707751124129,294.36,0.00022899,2]
[313847263,1707751124416,500.0,0.00022799,2]
[313847264,1707751125461,500.0,0.00022899,2]
[313847265,1707751126965,150.0,0.000229,2]
[313847266,1707751127494,500.0,0.00022798,2]
[313847267,1707751128037,461.78564784,0.00022899,2]
[313847268,1707751128223,500.0,0.00022798,2]
[313847269,1707751130504,500.0,0.00022798,2]
[313847270,1707751132280,781.02,0.00022899,2]
[313847271,1707751132704,591.34334373,0.00022799,2]
[313847272,1707751133384,915.61,0.00022899,2]
[313847273,1707751134781,500.0,0.00022799,2]
[313847274,1707751134844,500.0,0.00022798,2]
[313847275,1707751135339,500.0,0.00022798,2]
[313847276,1707751137956,500.0,0.00022798,2]
[313847277,1707751139216,500.0,0.00022798,2]
[313847278,1707751141426,500.0,0.00022798,2]
[313847279,1707751147827,500.0,0.00022899,2]
[313847280,1707751147881,500.0,0.00022798,2]
[313847281,1707751151074,500.0,0.00022799,2]
[313847282,1707751152539,500.0,0.00022798,2]
[313847283,1707751154064,500.0,0.00022799,2]
[313847284,1707751155692,759.12,0.00022798,2]
[313847285,1707751157037,564.15,0.00022798,2]
[313847286,1707751161410,500.0,0.00022798,2]
[313847287,1707751162753,500.0,0.00022899,2]
[313847288,1707751163738,570.01371449,0.00022798,2]
[313847289,1707751165540,500.0,0.00022798,2]
[313847290,1707751165689,500.0,0.00022798,2]
[313847291,1707751165949,500.0,0.00022798,2]
[313847292,1707751166533,500.0,0.00022899,2]
[313847293,1707751167826,631.08,0.00022899,2]
[313847294,1707751169180,500.0,0.00022798,2]
[313847295,1707751172639,558.77,0.00022899,2]
[313847296,1707751173963,500.0,0.00022798,2]
[313847297,1707751174026,500.0,0.00022798,2]
[313847298,1707751176324,500.0,0.00022798,2]
[313847299,1707751176698,500.0,0.00022899,2]
[313847300,1707751180482,500.0,0.00022798,2]
[313847301,1707751182757,500.0,0.00022899,2]
[313847302,1707751186080,2000.0,0.00022567,2]
[313847303,1707751187293,500.0,0.00022798,2]
[313847304,1707751187407,500.0,0.00022899,2]
[313847305,1707751188664,500.0,0.00022798,2]
[313847306,1707751190387,500.0,0.00022899,2]
[313847307,1707751190790,500.0,0.00022899,2]
[313847308,1707751191965,500.0,0.00022798,2]
[313847309,1707751195069,627.23491027,0.00022899,2]
[313847310,1707751198360,500.0,0.00022798,2]
[313847311,1707751201306,241.17,0.00022899,2]
[313847312,1707751201568,500.0,0.00022899,2]
[313847313,1707751202706,500.0,0.00022798,2]
[313847314,1707751207644,500.0,0.00022798,2]
[313847315,1707751208550,1570.39,0.00022899,2]
[313847316,1707751210976,502.01,0.00022899,2]
[313847317,1707751211660,517.18602646,0.00022798,2]
[313847318,1707751212622,516.44,0.00022798,2]
[313847319,1707751214092,175.17,0.00022899,2]
[313847320,1707751215973,500.0,0.00022798,2]
[313847321,1707751219030,500.0,0.00022798,2]
[313847322,1707751220286,182.73,0.00022899,2]
[313847323,1707751220420,500.0,0.00022899,2]
[313847324,1707751222541,555.18,0.00022798,2]
[313847325,1707751226722,261.34,0.00022417,2]
[313847326,1707751226782,500.0,0.00022798,2]
[313847327,1707751229884,582.2286,0.00022972,2]
[313847328,1707751230186,682.2,0.00022899,2]
[313847329,1707751230740,183.16,0.00022899,2]
[313847330,1707751231625,500.0,0.00022899,2]
[313847331,1707751232033,250.0,0.00022417,2]
[313847332,1707751233404,500.0,0.00022798,2]
[313847333,1707751235074,500.0,0.00022899,2]
[313847334,1707751240111,500.0,0.00022899,2]
[313847335,1707751242720,500.0,0.00022899,2]
[313847336,1707751244127,500.0,0.00022798,2]
[313847337,1707751248475,500.0,0.00022899,2]
[313847338,1707751250955,150.0,0.000229,2]
[313847339,1707751251792,500.0,0.00022798,2]
[313847340,1707751254000,500.0,0.00022899,2]
[313847341,1707751254386,500.0,0.00022798,2]
[313847342,1707751258799,500.0,0.00022798,2]
[313847343,1707751261333,500.0,0.00022899,2]
[313847344,1707751261707,500.0,0.00022798,2]
[313847345,1707751268023,500.0,0.00022899,2]
[313847346,1707751269290,505.8,0.00022899,2]
[313847347,1707751269433,598.64,0.00022899,2]
[313847348,1707751275923,500.0,0.00022798,2]
[313847349,1707751281380,500.0,0.00022798,2]
[313847350,1707751291318,500.0,0.00022899,2]
[313847351,1707751292841,500.0,0.00022798,2]
[313847352,1707751300656,500.0,0.00022798,2]
[313847353,1707751301983,500.0,0.00022798,2]
[313847354,1707751303936,500.0,0.00022899,2]
[313847355,1707751304389,500.0,0.00022798,2]
[313847356,1707751309428,500.0,0.00022798,2]
[313847357,1707751317060,500.0,0.00022899,2]